bitfinex-derivatives/quotes_BTCF0:USTF0_20241214
["timestamp","ask_amount","ask_price","bid_price","bid_amount"]
[1734181140166,0.65785591,101310.0,101300.0,1.193e-05]
[1734181140372,0.95785591,101310.0,101300.0,1.193e-05]
[1734181140564,1.16356132,101310.0,101300.0,1.193e-05]
[1734181140760,0.95785591,101310.0,101300.0,1.193e-05]
[1734181141264,0.83503537,101310.0,101300.0,1.193e-05]
[1734181141466,0.59644564,101310.0,101300.0,1.193e-05]
[1734181143174,0.62861762,101310.0,101300.0,0.04936593]
[1734181146064,0.45273537,101310.0,101300.0,0.04936593]
[1734181146273,0.62950332,101310.0,101300.0,0.04936593]
[1734181146578,0.72308557,101310.0,101300.0,0.04936593]
[1734181149576,0.76368557,101310.0,101300.0,0.04936593]
[1734181150176,0.76368557,101310.0,101280.0,0.9846473]
[1734181150374,0.117866,101290.0,101280.0,1.02784422]
[1734181151275,0.117866,101290.0,101280.0,2.15784422]
[1734181152177,0.117866,101290.0,101280.0,1.02784422]
[1734181154382,0.117866,101290.0,101280.0,1.03765761]
[1734181154769,0.117866,101290.0,101280.0,1.13123986]
[1734181157080,0.117866,101290.0,101280.0,1.03765761]
[1734181159883,0.117866,101290.0,101280.0,1.03815761]
[1734181160583,0.117866,101290.0,101280.0,0.8018618]
[1734181160975,0.117866,101290.0,101280.0,1.03853379]
[1734181161377,0.117866,101290.0,101280.0,0.8018618]
[1734181161681,0.117866,101290.0,101280.0,1.03856117]
[1734181161884,0.117866,101290.0,101280.0,0.8018618]
[1734181165182,0.117866,101290.0,101280.0,0.86326967]
[1734181165486,0.117866,101290.0,101280.0,0.92467754]
[1734181167081,0.117866,101290.0,101280.0,0.86326967]
[1734181167785,0.2651985,101290.0,101280.0,0.86326967]
[1734181169186,0.117866,101290.0,101280.0,0.86326967]
[1734181169383,0.117866,101290.0,101280.0,0.92467754]
[1734181169591,0.117866,101290.0,101280.0,0.86326967]
[1734181173283,0.117866,101290.0,101280.0,0.92467754]
[1734181174888,0.117866,101290.0,101280.0,0.92417754]
[1734181175490,0.117866,101290.0,101280.0,1.27924252]
[1734181175893,0.117866,101290.0,101280.0,0.92417754]
[1734181176089,0.117866,101290.0,101280.0,1.27924252]
[1734181176287,0.117866,101290.0,101280.0,0.92417754]
[1734181176490,0.117866,101290.0,101280.0,1.2794391]
[1734181176993,0.117866,101290.0,101280.0,1.27943511]
[1734181177394,0.117866,101290.0,101280.0,0.98335503]
[1734181177689,0.117866,101290.0,101280.0,2.40942937]
[1734181177994,0.117866,101290.0,101280.0,2.11335503]
[1734181178193,0.20628577,101290.0,101280.0,2.11335503]
[1734181178588,0.20628647,101290.0,101280.0,2.11335503]
[1734181178787,0.20628647,101290.0,101280.0,2.40941425]
[1734181178990,0.117866,101290.0,101280.0,2.40941425]
[1734181179591,0.20628196,101290.0,101280.0,2.11335503]
[1734181179993,0.20628196,101290.0,101280.0,2.40940148]
[1734181180192,0.117866,101290.0,101280.0,2.40940148]
[1734181182399,0.117866,101290.0,101280.0,2.08850148]
[1734181184395,0.20628441,101290.0,101280.0,2.08850148]
[1734181184693,0.20628531,101290.0,101280.0,2.08850148]
[1734181184886,0.117866,101290.0,101280.0,2.08850148]
[1734181185699,0.117866,101290.0,101280.0,1.7334365]
[1734181186394,0.32418682,101310.0,101300.0,0.049354]
[1734181186596,0.14741887,101310.0,101300.0,0.6901489]
[1734181186901,8.637e-05,101310.0,101300.0,2.3573611]
[1734181187096,8.637e-05,101310.0,101300.0,2.04486413]
[1734181190005,0.00058637,101310.0,101300.0,2.04486413]
[1734181191105,0.00058637,101310.0,101300.0,2.28116035]
[1734181192207,0.00058637,101310.0,101300.0,2.49806381]
[1734181193002,0.00058637,101310.0,101300.0,1.98516288]
[1734181193208,0.00058637,101310.0,101300.0,1.92375501]
[1734181193406,0.00058637,101310.0,101300.0,1.57541201]
[1734181193710,0.00058637,101310.0,101300.0,1.93621201]
[1734181194103,0.00058637,101310.0,101300.0,1.99761988]
[1734181196008,0.00058637,101310.0,101300.0,2.17478943]
[1734181197022,0.00058637,101310.0,101300.0,2.11338156]
[1734181197229,0.04148637,101310.0,101300.0,2.11338156]
[1734181197417,0.04148637,101310.0,101300.0,0.57988156]
[1734181197616,0.12448637,101310.0,101300.0,0.34358534]
[1734181197815,0.48528637,101310.0,101300.0,0.34358534]
[1734181198120,0.12448637,101310.0,101300.0,0.34358534]
[1734181198323,0.48528637,101310.0,101300.0,0.16641579]
[1734181198520,0.12448637,101310.0,101300.0,0.16641579]
[1734181199320,0.48528637,101310.0,101300.0,0.34361332]
[1734181199723,0.12448637,101310.0,101300.0,0.34361332]
[1734181199922,0.48528637,101310.0,101300.0,0.34361332]
[1734181200118,0.12448637,101310.0,101300.0,0.34361332]
[1734181200421,0.48528637,101310.0,101300.0,0.34361332]
[1734181201821,0.12448637,101310.0,101300.0,0.34361332]
[1734181202132,0.48528637,101310.0,101300.0,0.34361332]
[1734181202721,0.40228637,101310.0,101300.0,0.40502119]
[1734181203220,0.00058637,101310.0,101300.0,1.00211741]
[1734181203416,0.00058637,101310.0,101300.0,1.99841988]
[1734181204423,0.00058637,101310.0,101300.0,2.5123367]
[1734181204929,0.6316325,101330.0,101320.0,0.049344]
[1734181205232,0.6316325,101330.0,101320.0,0.11075187]
[1734181206523,0.6316325,101330.0,101320.0,0.153936]
[1734181207327,0.69304037,101330.0,101320.0,0.153936]
[1734181208225,0.69304037,101330.0,101320.0,0.11075187]
[1734181208422,0.69304037,101330.0,101320.0,0.049344]
[1734181209027,0.69304037,101330.0,101320.0,0.09252782]
[1734181209534,0.69304037,101330.0,101320.0,0.09252849]
[1734181210531,0.74237937,101330.0,101320.0,0.09252849]
[1734181210727,0.049344,101320.0,101310.0,0.46280251]
[1734181211038,0.53345974,101320.0,101310.0,0.22038006]
[1734181211233,0.85756019,101320.0,101310.0,0.04318449]
[1734181212033,0.85706019,101320.0,101310.0,0.04318449]
[1734181212232,0.85706019,101320.0,101310.0,0.09253349]
[1734181212233,0.79565232,101320.0,101310.0,0.09253349]
[1734181212741,0.79565232,101320.0,101310.0,0.049349]
[1734181212933,0.79615232,101320.0,101310.0,0.049349]
[1734181213234,0.85756019,101320.0,101310.0,0.049349]
[1734181213433,0.85756019,101320.0,101310.0,0.212209]
[1734181213627,0.85756019,101320.0,101310.0,0.25539988]
[1734181213833,0.71022769,101320.0,101310.0,0.212209]
[1734181214038,1.00972769,101320.0,101310.0,0.16286]
[1734181214239,1.00951334,101320.0,101310.0,0.01476776]
[1734181214832,0.83295974,101320.0,101310.0,0.01476776]
[1734181215138,0.83345974,101320.0,101310.0,0.02463776]
[1734181215335,0.83345974,101320.0,101310.0,0.11840776]
[1734181215635,1.00999079,101320.0,101310.0,0.12629776]
[1734181216040,0.83295974,101320.0,101310.0,0.12629776]
[1734181216724,1.02161676,101320.0,101310.0,0.12629776]
[1734181217332,0.84509072,101320.0,101310.0,0.12629776]
[1734181218436,0.84509072,101320.0,101310.0,0.08361776]
[1734181219229,1.05079613,101320.0,101310.0,0.08361776]
[1734181219438,0.84509072,101320.0,101310.0,0.08361776]
[1734181219744,0.84509072,101320.0,101310.0,0.09348776]
[1734181219927,0.54509072,101320.0,101310.0,0.09348776]
[1734181221436,1.02149568,101320.0,101310.0,0.09348776]
[1734181221743,0.84509072,101320.0,101310.0,0.09348776]
[1734181222039,0.54509072,101320.0,101310.0,0.09348776]
[1734181222933,0.72147732,101320.0,101310.0,0.09348776]
[1734181223135,0.54509072,101320.0,101310.0,0.09348776]
[1734181223334,0.84509072,101320.0,101310.0,0.09348776]
[1734181223747,0.84509072,101320.0,101310.0,0.10137776]
[1734181223944,0.86462233,101320.0,101310.0,0.10137776]
[1734181224246,1.02496877,101320.0,101310.0,0.10137776]
[1734181225450,0.72496877,101320.0,101310.0,0.10137776]
[1734181227541,0.36416877,101320.0,101310.0,0.10137776]
[1734181227733,1.08576877,101320.0,101310.0,0.10137776]
[1734181227930,1.26206219,101320.0,101310.0,0.10137776]
[1734181228456,1.08576877,101320.0,101310.0,0.10137776]
[1734181229144,1.26203762,101320.0,101310.0,0.10137776]
[1734181234047,1.11969027,101320.0,101310.0,0.16278563]
[1734181234246,1.11969027,101320.0,101310.0,0.15072676]
[1734181234247,1.32792441,101320.0,101310.0,0.15072676]
[1734181234444,1.32792441,101320.0,101310.0,0.23642676]
[1734181235051,1.13952458,101320.0,101310.0,0.23642676]
[1734181237939,1.13952458,101320.0,101310.0,0.30551676]
[1734181238852,1.13952458,101320.0,101310.0,0.48271233]
[1734181239041,1.20093245,101320.0,101310.0,0.48271233]
[1734181239952,1.20093245,101320.0,101310.0,0.30551676]
[1734181240243,1.3772013,101320.0,101310.0,0.30551676]
[1734181240449,1.23037503,101320.0,101310.0,0.30551676]
[1734181241049,1.31606131,101320.0,101310.0,0.30551676]
[1734181241241,1.13979246,101320.0,101310.0,0.30551676]
[1734181241551,1.10755929,101320.0,101310.0,0.41011555]
[1734181241743,1.25466165,101320.0,101310.0,0.41011555]
[1734181241942,1.31606952,101320.0,101310.0,0.34870768]
[1734181242545,1.31606952,101320.0,101310.0,0.35560768]
[1734181243153,1.37747739,101320.0,101310.0,0.30625868]
[1734181243463,1.31606952,101320.0,101310.0,0.30625868]
[1734181244053,1.37747739,101320.0,101310.0,0.30625868]
[1734181244554,1.23037503,101320.0,101310.0,0.30625868]
[1734181244948,1.16896716,101320.0,101310.0,0.30625868]
[1734181247154,1.16896716,101320.0,101310.0,0.26306776]
[1734181248754,1.16896716,101320.0,101310.0,0.31241676]
[1734181250545,1.16896716,101320.0,101310.0,0.35560943]
[1734181251546,1.31600665,101320.0,101310.0,0.35560943]
[1734181251853,1.37741452,101320.0,101310.0,0.22056043]
[1734181252047,1.27047503,101320.0,101310.0,0.22056043]
[1734181252250,1.29991159,101320.0,101310.0,0.22056043]
[1734181252452,1.29991159,101320.0,101310.0,0.17736776]
[1734181256554,1.09420618,101320.0,101310.0,0.17736776]
[1734181256753,1.29991159,101320.0,101310.0,0.17736776]
[1734181256949,1.09420618,101320.0,101310.0,0.17736776]
[1734181257259,1.29991159,101320.0,101310.0,0.17736776]
[1734181258157,1.27067821,101320.0,101310.0,0.17736776]
[1734181258361,1.09420618,101320.0,101310.0,0.17736776]
[1734181259161,1.09420618,101320.0,101310.0,0.02926274]
[1734181260459,1.09420618,101320.0,101280.0,0.41345651]
[1734181260460,0.049359,101290.0,101280.0,0.41345651]
[1734181260660,0.049364,101280.0,101270.0,0.22804475]
[1734181260853,0.61860021,101280.0,101270.0,0.22188407]
[1734181261057,0.61860021,101280.0,101270.0,0.26198407]
[1734181261260,0.61860021,101280.0,101270.0,0.0847885]
[1734181261460,0.55719234,101280.0,101270.0,0.19556537]
[1734181261667,0.61860021,101280.0,101270.0,0.24744805]
[1734181261858,0.61860021,101280.0,101270.0,0.22924855]
[1734181262258,0.73607759,101280.0,101270.0,0.18604018]
[1734181262566,0.73607759,101280.0,101270.0,0.09287118]
[1734181262761,0.77597759,101280.0,101270.0,0.09356118]
[1734181263263,0.77597759,101280.0,101270.0,0.141449]
[1734181264161,0.62894925,101280.0,101270.0,0.141449]
[1734181264371,0.69035712,101280.0,101270.0,0.00858]
[1734181264865,0.83738546,101280.0,101270.0,0.00858]
[1734181265057,0.77597759,101280.0,101270.0,0.00908]
[1734181265252,0.62880703,101280.0,101270.0,0.00908]
[1734181265465,0.83724324,101280.0,101270.0,0.00908]
[1734181265974,0.77583537,101280.0,101270.0,0.00908]
[1734181266157,0.8372034,101280.0,101270.0,0.03583]
[1734181266466,0.69017506,101280.0,101270.0,0.03583]
[1734181266767,0.8372034,101280.0,101270.0,0.03583]
[1734181266953,0.69017506,101280.0,101270.0,0.03583]
[1734181267154,0.69017506,101280.0,101270.0,0.04372]
[1734181267971,0.56735932,101280.0,101270.0,0.04372]
[1734181268265,0.62876719,101280.0,101270.0,0.04372]
[1734181268465,0.69017506,101280.0,101270.0,0.04372]
[1734181268656,0.69017506,101280.0,101270.0,0.08652]
[1734181270666,0.65027506,101280.0,101270.0,0.135889]
[1734181271256,0.65027506,101280.0,101270.0,0.175689]
[1734181271454,0.58886719,101280.0,101270.0,0.175689]
[1734181271657,0.65027506,101280.0,101270.0,0.175689]
[1734181272058,0.58886719,101280.0,101270.0,0.175689]
[1734181273664,0.65027506,101280.0,101270.0,0.175689]
[1734181274663,0.58886719,101280.0,101270.0,0.175689]
[1734181274862,0.58886719,101280.0,101270.0,0.217489]
[1734181275958,0.65027506,101280.0,101270.0,0.135889]
[1734181276563,0.65027506,101280.0,101270.0,0.08652]
[1734181279070,0.65027506,101280.0,101270.0,0.135889]
[1734181279570,0.65027506,101280.0,101270.0,0.08652]
[1734181280372,0.7973034,101280.0,101270.0,0.08652]
[1734181280766,0.67448766,101280.0,101270.0,0.08652]
[1734181280975,0.7973034,101280.0,101270.0,0.135889]
[1734181281157,0.7973034,101280.0,101270.0,0.08652]
[1734181282364,0.68000808,101280.0,101270.0,0.08652]
[1734181282564,0.68000808,101280.0,101270.0,0.04372]
[1734181282777,0.205649,101270.0,101260.0,0.11064632]
[1734181283072,0.205649,101270.0,101260.0,0.14694594]
[1734181283073,0.74523577,101270.0,101260.0,0.14694594]
[1734181284168,0.74523577,101270.0,101260.0,0.28883189]
[1734181285875,0.74523577,101270.0,101260.0,0.15484594]
[1734181286467,0.74523577,101270.0,101260.0,0.33204151]
[1734181287173,0.74523577,101270.0,101260.0,0.33254151]
[1734181287473,0.89226411,101270.0,101260.0,0.33254151]
[1734181288073,0.78148724,101270.0,101260.0,0.39344938]
[1734181288275,0.78148724,101270.0,101260.0,0.33204151]
[1734181288574,0.72551621,101270.0,101260.0,0.56830245]
[1734181288969,0.77488521,101270.0,101260.0,0.57571245]
[1734181289476,0.84055404,101270.0,101260.0,0.39851688]
[1734181290067,0.84055404,101270.0,101260.0,0.39801688]
[1734181291068,0.84055404,101270.0,101260.0,0.39851688]
[1734181291265,0.66410834,101270.0,101260.0,0.39851688]
[1734181292073,0.66410834,101270.0,101260.0,0.75542222]
[1734181292280,0.30330834,101270.0,101260.0,1.04199446]
[1734181292475,0.4211009,101270.0,101260.0,0.74432565]
[1734181292877,0.27407256,101270.0,101260.0,0.74432565]
[1734181293080,0.4211009,101270.0,101260.0,0.7458554]
[1734181293279,0.27407256,101270.0,101260.0,1.10105237]
[1734181293678,0.27407256,101270.0,101260.0,0.7458554]
[1734181294077,0.27407256,101270.0,101260.0,0.7453554]
[1734181294277,0.27407256,101270.0,101260.0,0.7532554]
[1734181295178,0.27407256,101270.0,101260.0,0.7537554]
[1734181295383,0.27407256,101270.0,101260.0,0.69234753]
[1734181295584,0.27407256,101270.0,101260.0,0.81516327]
[1734181296086,0.27407256,101270.0,101260.0,0.7537554]
[1734181297081,0.32344156,101270.0,101260.0,0.69234753]
[1734181297283,0.32344156,101270.0,101260.0,0.92916186]
[1734181297284,0.89267777,101270.0,101260.0,0.92916186]
[1734181297471,0.89267777,101270.0,101260.0,0.93003375]
[1734181298083,0.71347734,101270.0,101260.0,0.64599991]
[1734181298584,0.83119058,101270.0,101260.0,0.46837814]
[1734181298791,0.71347734,101270.0,101260.0,0.46837814]
[1734181299185,0.83119164,101270.0,101260.0,0.46837814]
[1734181299591,0.47039182,101270.0,101260.0,0.99142273]
[1734181300084,0.83119182,101270.0,101260.0,0.99142273]
[1734181300383,0.32336348,101270.0,101260.0,0.99142273]
[1734181300590,0.83119182,101270.0,101260.0,0.99142273]
[1734181301676,0.47039182,101270.0,101260.0,0.46837814]
[1734181301986,0.83119182,101270.0,101260.0,0.76387561]
[1734181302285,0.83127423,101270.0,101260.0,0.36387561]
[1734181302490,0.71355975,101270.0,101260.0,0.06787814]
[1734181302987,0.71355975,101270.0,101260.0,0.11725014]
[1734181303290,0.71355975,101270.0,101260.0,1.25515014]
[1734181303585,0.71355975,101270.0,101260.0,1.26668389]
[1734181308391,0.71355975,101270.0,101260.0,0.07527602]
[1734181308587,0.75535975,101270.0,101260.0,0.07527602]
[1734181309789,0.39455975,101270.0,101260.0,0.13668389]
[1734181309994,0.30339075,101270.0,101260.0,0.19809176]
[1734181310187,0.27408575,101270.0,101260.0,1.19081896]
[1734181310388,0.20658575,101270.0,101260.0,1.19081896]
[1734181310688,0.22707983,101270.0,101260.0,1.54601593]
[1734181310892,0.5815457,101310.0,101270.0,0.04937]
[1734181311089,0.5815457,101310.0,101300.0,0.11076287]
[1734181311394,0.64295357,101310.0,101300.0,0.057245]
[1734181311594,0.4051,101310.0,101300.0,0.29602007]
[1734181311797,0.0443,101310.0,101300.0,0.2346122]
[1734181311991,0.0443,101310.0,101300.0,0.29602007]
[1734181312891,0.0443,101310.0,101300.0,0.27780287]
[1734181313195,0.0443,101310.0,101300.0,0.2346122]
[1734181313586,0.4051,101310.0,101300.0,0.057245]
[1734181313788,0.454451,101310.0,101300.0,0.057245]
[1734181314093,0.51585887,101310.0,101300.0,0.057245]
[1734181314298,0.55795887,101310.0,101300.0,0.057245]
[1734181316889,0.539151,101310.0,101300.0,0.11865287]
[1734181318294,0.60055887,101310.0,101300.0,0.057245]
[1734181318794,0.60055887,101310.0,101300.0,0.00789]
[1734181320503,0.60055887,101310.0,101300.0,0.057245]
[1734181320895,0.539151,101310.0,101300.0,0.11865287]
[1734181321405,0.539151,101310.0,101300.0,0.12160287]
[1734181322106,0.60055887,101310.0,101300.0,0.12160287]
[1734181322309,0.60055887,101310.0,101300.0,0.060195]
[1734181322498,0.539151,101310.0,101300.0,0.12160287]
[1734181324310,0.539651,101310.0,101300.0,0.12160287]
[1734181324505,0.539651,101310.0,101300.0,0.12949287]
[1734181328105,0.55170787,101310.0,101300.0,0.01873]
[1734181328309,0.60105887,101310.0,101300.0,0.01873]
[1734181328603,0.11076287,101300.0,101290.0,0.04936]
[1734181328807,0.47156287,101300.0,101290.0,0.02878975]
[1734181329709,0.47156287,101300.0,101290.0,0.03667975]
[1734181329906,0.47156287,101300.0,101290.0,0.00789]
[1734181331206,0.410155,101300.0,101290.0,0.00789]
[1734181331510,0.410155,101300.0,101290.0,0.05725]
[1734181332709,0.3608,101300.0,101290.0,0.05725]
[1734181333009,0.410155,101300.0,101290.0,0.05725]
[1734181337626,0.410155,101300.0,101290.0,0.10044706]
[1734181337904,0.410155,101300.0,101290.0,0.05725]
[1734181339199,0.410155,101300.0,101290.0,0.2351172]
[1734181340711,0.5866007,101300.0,101290.0,0.00839]
[1734181340898,0.73366548,101300.0,101290.0,0.00839]
[1734181341810,0.55721978,101300.0,101290.0,0.2351172]
[1734181342708,0.55721978,101300.0,101290.0,0.27831705]
[1734181343115,0.55721978,101300.0,101290.0,0.2351172]
[1734181343413,0.55721978,101300.0,101290.0,0.27831526]
[1734181344205,0.65081016,101300.0,101290.0,0.04319806]
[1734181344406,0.049365,101280.0,101270.0,0.34678966]
[1734181344621,0.55724974,101280.0,101270.0,0.049367]
[1734181345506,0.55724974,101280.0,101270.0,0.057257]
[1734181347516,0.68584974,101280.0,101270.0,0.057257]
[1734181347818,0.68584974,101280.0,101270.0,0.065147]
[1734181348019,1.04664974,101280.0,101270.0,0.065147]
[1734181350414,1.04664974,101280.0,101270.0,1.195147]
[1734181350809,1.14024012,101280.0,101270.0,1.195147]
[1734181351612,1.14024012,101280.0,101270.0,0.065147]
[1734181353109,0.99315538,101280.0,101270.0,0.065147]
[1734181353311,0.96100851,101280.0,101270.0,0.065147]
[1734181355219,0.96100851,101280.0,101270.0,0.065647]
[1734181356319,1.10809325,101280.0,101270.0,0.065647]
[1734181356513,0.96100851,101280.0,101270.0,0.065647]
[1734181358319,1.10809325,101280.0,101270.0,0.065647]
[1734181358512,0.96100851,101280.0,101270.0,0.065647]
[1734181361813,1.10809325,101280.0,101270.0,0.065647]
[1734181362525,0.96100851,101280.0,101270.0,0.065647]
[1734181363816,0.96100851,101280.0,101270.0,0.10885311]
[1734181363817,1.10809325,101280.0,101270.0,0.10885311]
[1734181365027,0.96100851,101280.0,101270.0,0.10885311]
[1734181365218,1.10809325,101280.0,101270.0,0.065647]
[1734181369331,0.38649325,101280.0,101270.0,0.065647]
[1734181369526,0.74729325,101280.0,101270.0,0.065647]
[1734181369824,0.68584974,101280.0,101270.0,0.065647]
[1734181370025,0.74729325,101280.0,101270.0,0.10885308]
[1734181370222,0.74729325,101280.0,101270.0,0.10835308]
[1734181371721,0.74720698,101280.0,101270.0,0.10835308]
[1734181372232,0.38640698,101280.0,101270.0,0.10835308]
[1734181372430,0.74720698,101280.0,101270.0,0.34496595]
[1734181372730,0.74720698,101280.0,101270.0,0.10835308]
[1734181373430,0.74720698,101280.0,101270.0,0.34496595]
[1734181373820,0.92360514,101280.0,101270.0,0.34496595]
[1734181374026,0.74720698,101280.0,101270.0,0.34496595]
[1734181374227,0.92360514,101280.0,101270.0,0.34496595]
[1734181375326,0.77660667,101280.0,101270.0,0.34496595]
[1734181376923,0.66579816,101280.0,101270.0,0.40640946]
[1734181377134,0.72724167,101280.0,101270.0,0.34496595]
[1734181380038,0.77660667,101280.0,101270.0,0.34496595]
[1734181389439,0.66579816,101280.0,101270.0,0.40640946]
[1734181389642,0.81295199,101280.0,101270.0,0.40640946]
[1734181390144,0.81295199,101280.0,101270.0,0.34496595]
[1734181391439,0.81295199,101280.0,101270.0,0.30175987]
[1734181391843,0.66579816,101280.0,101270.0,0.34496583]
[1734181392938,0.53719816,101280.0,101270.0,0.36320338]
[1734181393138,0.6843497,101280.0,101270.0,0.40640932]
[1734181393348,0.50795154,101280.0,101270.0,0.49780932]
[1734181393645,0.50795154,101280.0,101270.0,1.62780932]
[1734181394646,0.50795154,101280.0,101270.0,1.58460338]
[1734181395548,0.50795154,101280.0,101270.0,1.64604689]
[1734181395737,0.50795154,101280.0,101270.0,2.11343839]
[1734181395738,0.11772704,101280.0,101270.0,2.11343839]
[1734181396052,0.11772704,101280.0,101270.0,2.76412377]
[1734181396349,0.26537858,101290.0,101270.0,2.76425463]
[1734181396539,0.26537858,101290.0,101280.0,0.45466957]
[1734181396742,0.26537858,101290.0,101280.0,0.49787394]
[1734181397141,0.26487858,101290.0,101280.0,0.49787394]
[1734181397352,0.73648209,101290.0,101280.0,0.32928692]
[1734181397651,0.61875505,101290.0,101280.0,0.28608255]
[1734181397838,0.61875505,101290.0,101280.0,0.049365]
[1734181398036,0.61875505,101290.0,101280.0,0.057255]
[1734181398343,0.61925505,101290.0,101280.0,0.057255]
[1734181400349,0.79565321,101290.0,101280.0,0.057255]
[1734181401244,0.61925505,101290.0,101280.0,0.10045792]
[1734181401638,0.61925505,101290.0,101280.0,0.057255]
[1734181406049,0.55781154,101290.0,101280.0,0.057255]
[1734181406256,0.61925505,101290.0,101280.0,0.057255]
[1734181407454,0.61925505,101290.0,101280.0,0.10045689]
[1734181408449,0.79565321,101290.0,101280.0,0.10045689]
[1734181410660,0.50845154,101290.0,101280.0,0.1619004]
[1734181410957,0.50845154,101290.0,101280.0,0.17556482]
[1734181411154,0.50845154,101290.0,101280.0,1.30556482]
[1734181413157,0.50845154,101290.0,101280.0,0.17556482]
[1734181413654,0.50845154,101290.0,101280.0,1.30556482]
[1734181414250,0.50795154,101290.0,101280.0,1.30556482]
[1734181414858,0.50795154,101290.0,101280.0,1.26236293]
[1734181416062,0.50795154,101290.0,101280.0,0.13236293]
[1734181417349,0.50795154,101290.0,101280.0,0.36908048]
[1734181418259,0.6843497,101290.0,101280.0,0.1755632]
[1734181418455,0.50795154,101290.0,101280.0,0.1755632]
[1734181418855,0.50795154,101290.0,101280.0,0.41228075]
[1734181419660,0.50795154,101290.0,101280.0,0.1755632]
[1734181419858,0.6843497,101290.0,101280.0,0.13236293]
[1734181420161,0.50795154,101290.0,101280.0,0.35083752]
[1734181420460,0.6843497,101290.0,101280.0,0.17556348]
[1734181420661,0.50795154,101290.0,101280.0,0.41228103]
[1734181422758,0.50795154,101290.0,101280.0,0.47372454]
[1734181422954,0.26493675,101290.0,101280.0,0.45608103]
[1734181423258,0.26493675,101290.0,101280.0,0.77212664]
[1734181423454,0.26493675,101290.0,101280.0,0.4762297]
[1734181423651,0.26493675,101290.0,101280.0,1.19437015]
[1734181423850,0.26493675,101290.0,101280.0,1.31909611]
[1734181423851,0.07458715,101290.0,101280.0,1.31909611]
[1734181424064,0.07458715,101290.0,101280.0,1.68190541]
[1734181424260,0.14715154,101300.0,101280.0,2.76870486]
[1734181424457,0.6843497,101310.0,101290.0,0.79541409]
[1734181424769,0.6843497,101310.0,101300.0,0.17224202]
[1734181425671,0.50795154,101310.0,101300.0,0.17224202]
[1734181425864,0.50795154,101310.0,101300.0,0.18013202]
[1734181426558,0.50795154,101310.0,101300.0,0.46380215]
[1734181426755,0.3608,101310.0,101300.0,0.46380215]
[1734181428658,0.50943259,101320.0,101310.0,0.049351]
[1734181428859,0.50795154,101320.0,101310.0,0.17223802]
[1734181429063,0.50795154,101320.0,101310.0,0.26023802]
[1734181429758,0.50795154,101320.0,101310.0,1.32879451]
[1734181430074,0.14715154,101320.0,101310.0,0.19879451]
[1734181430268,0.50795154,101320.0,101310.0,0.19879451]
[1734181430468,0.14715154,101320.0,101310.0,0.19879451]
[1734181430869,0.50795154,101320.0,101310.0,0.19879451]
[1734181431078,0.14715154,101320.0,101310.0,0.15449451]
[1734181431473,0.14715154,101320.0,101310.0,0.11079451]
[1734181433370,0.44889757,101320.0,101310.0,0.11079451]
[1734181433562,0.49569757,101320.0,101310.0,0.11079451]
[1734181433769,0.58939757,101320.0,101310.0,0.11079451]
[1734181436672,0.58939757,101320.0,101310.0,0.049351]
[1734181436871,0.58939757,101320.0,101310.0,0.11079451]
[1734181438979,0.58939757,101320.0,101310.0,0.11868451]
[1734181440574,0.58939757,101320.0,101310.0,1.24868451]
[1734181441381,0.63874357,101320.0,101310.0,1.24868451]
[1734181441980,0.58939757,101320.0,101310.0,1.24868451]
[1734181442483,0.58989757,101320.0,101310.0,1.24868451]
[1734181442979,0.63924357,101320.0,101310.0,0.11868451]
[1734181443382,0.63874357,101320.0,101310.0,0.11868451]
[1734181443790,0.58939757,101320.0,101310.0,0.11868451]
[1734181443975,0.1405,101320.0,101310.0,0.11868451]
[1734181444383,0.22909757,101320.0,101310.0,0.11868451]
[1734181444575,0.141,101320.0,101310.0,0.11868451]
[1734181444979,0.141,101320.0,101310.0,0.54092802]
[1734181445174,0.0473,101320.0,101310.0,0.54092802]
[1734181445372,0.0005,101320.0,101310.0,0.47948451]
[1734181445679,0.0005,101320.0,101310.0,0.11868451]
[1734181446479,0.08859757,101320.0,101310.0,0.18012802]
[1734181446884,0.0005,101320.0,101310.0,0.54092802]
[1734181447277,0.0005,101320.0,101310.0,0.78548815]
[1734181447571,0.0005,101320.0,101310.0,0.83578815]
[1734181448582,0.0005,101320.0,101310.0,1.13578815]
[1734181448779,0.0005,101320.0,101310.0,1.18078815]
[1734181449082,0.0005,101320.0,101310.0,2.31078815]
[1734181449981,0.06278074,101330.0,101320.0,0.049346]
[1734181450181,0.06278074,101330.0,101320.0,0.22063302]
[1734181450984,0.3608,101340.0,101330.0,0.049341]
[1734181451182,0.3608,101340.0,101330.0,0.11078451]
[1734181451379,0.3608,101340.0,101330.0,0.17222802]
[1734181451581,0.3608,101340.0,101330.0,0.11078451]
[1734181452987,0.32904272,101340.0,101330.0,0.17222802]
[1734181453600,0.32904272,101340.0,101330.0,0.40889815]
[1734181453779,0.65415154,101350.0,101330.0,0.40889815]
[1734181453974,0.65415154,101350.0,101340.0,0.17222302]
[1734181454786,0.65415154,101350.0,101340.0,1.30222302]
[1734181456191,0.65415154,101350.0,101340.0,0.18011302]
[1734181456793,0.65415154,101350.0,101340.0,1.31011302]
[1734181457293,0.507,101350.0,101340.0,1.31011302]
[1734181458793,0.1462,101350.0,101340.0,1.37155653]
[1734181459094,0.1462,101350.0,101340.0,1.67091302]
[1734181459391,0.3622805,101360.0,101350.0,0.049331]
[1734181459587,0.3622805,101360.0,101350.0,0.17221802]
[1734181459996,0.3608,101360.0,101350.0,0.17221802]
[1734181460589,0.3608,101360.0,101350.0,0.18010802]
[1734181461083,0.146,101370.0,101350.0,0.54090802]
[1734181461285,0.146,101370.0,101360.0,0.17221302]
[1734181461892,0.55265154,101380.0,101370.0,0.049321]
[1734181462086,0.4055,101380.0,101370.0,0.17220802]
[1734181462290,0.4055,101380.0,101370.0,0.11076451]
[1734181462691,0.4055,101380.0,101370.0,0.17220802]
[1734181462992,0.4055,101380.0,101370.0,0.11076451]
[1734181466202,0.0447,101380.0,101370.0,0.11076451]
[1734181466390,0.0447,101380.0,101370.0,0.17220802]
[1734181466591,0.0447,101380.0,101370.0,0.11076451]
[1734181467300,0.0447,101380.0,101370.0,0.049321]
[1734181467492,0.0447,101380.0,101370.0,0.17220802]
[1734181468298,0.0447,101380.0,101370.0,0.18511508]
[1734181468502,0.0447,101380.0,101370.0,0.54591508]
[1734181470099,0.4574,101390.0,101370.0,0.54591508]
[1734181470398,0.0966,101390.0,101380.0,0.59444653]
[1734181470600,0.15048001,101400.0,101390.0,0.049312]
[1734181470905,0.149,101400.0,101390.0,0.17219902]
[1734181471289,0.149,101400.0,101390.0,0.14267602]
[1734181471597,0.5098,101400.0,101390.0,0.14267602]
[1734181473996,0.149,101400.0,101390.0,0.14267602]
[1734181474200,0.5098,101400.0,101390.0,0.14267602]
[1734181474399,0.5103,101400.0,101390.0,0.049312]
[1734181474908,0.559607,101400.0,101390.0,0.049312]